bitfinex/quotes_ETHUSD_20250426
["timestamp","ask_amount","ask_price","bid_price","bid_amount"]
[1745692175319,4.581,1809.0,1808.7,0.10902751]
[1745692175506,4.581,1809.0,1808.7,0.75455354]
[1745692175814,4.581,1809.0,1808.7,6.28337006]
[1745692177230,4.581,1809.0,1808.7,0.75455354]
[1745692177835,10.10894095,1809.0,1808.7,0.75455354]
[1745692180440,6.3095272,1808.8,1808.7,0.10902751]
[1745692180622,6.3095272,1808.8,1808.5,3.0]
[1745692180821,6.3095272,1808.8,1808.6,0.10902751]
[1745692181435,6.81262366,1808.7,1808.6,0.10902751]
[1745692181641,6.30972039,1808.8,1808.4,3.0]
[1745692181825,5.52883737,1808.7,1808.5,0.10902744]
[1745692182135,4.58,1808.6,1808.5,0.10902744]
[1745692188180,4.58,1808.6,1808.5,5.63847173]
[1745692189284,5.3662,1808.6,1808.5,0.10902744]
[1745692189454,11.35333856,1808.6,1808.1,5.53053913]
[1745692189658,11.35346138,1808.6,1808.1,5.53053913]
[1745692189961,10.89546138,1808.6,1808.1,8.42754065]
[1745692190350,10.89546138,1808.6,1808.2,5.53027391]
[1745692193762,5.3662,1808.6,1808.3,5.52993093]
[1745692193960,11.4865,1808.8,1808.5,5.52938609]
[1745692194163,10.69,1808.8,1808.5,5.52938609]
[1745692194377,10.69,1808.8,1808.5,6.09357434]
[1745692194663,10.69,1808.8,1808.5,6.85277434]
[1745692195195,4.58,1808.8,1808.5,6.85277434]
[1745692195571,4.58,1808.8,1808.5,1.32338825]
[1745692195775,4.58,1808.8,1808.5,0.7592]
[1745692201100,10.10858567,1808.8,1808.5,0.7592]
[1745692204975,15.63739984,1808.8,1808.5,0.7592]
[1745692205176,10.10858567,1808.8,1808.5,0.7592]
[1745692209504,6.302654,1808.7,1808.4,0.5]
[1745692209715,6.302654,1808.7,1808.4,1.48613122]
[1745692210287,5.52932039,1808.6,1808.3,3.8315]
[1745692210479,0.7736,1808.7,1808.2,0.8315]
[1745692210676,0.7736,1808.5,1808.0,0.8315]
[1745692210989,10.10999797,1808.4,1808.1,3.0]
[1745692211203,4.58,1808.4,1808.1,9.53434377]
[1745692212379,4.58,1808.4,1808.1,4.0036975]
[1745692213582,10.10977216,1808.4,1808.1,4.0036975]
[1745692213793,5.53008815,1808.3,1808.1,3.0]
[1745692214728,5.53008815,1808.3,1808.0,0.8315]
[1745692214908,5.53008815,1808.3,1808.0,3.8315]
[1745692216803,10.10993921,1808.4,1808.0,3.8315]
[1745692217227,15.6399863,1808.4,1808.0,3.8315]
[1745692217429,5.53027247,1808.3,1808.0,0.8315]
[1745692217731,5.53045814,1808.2,1808.0,0.8315]
[1745692217897,5.53045814,1808.2,1807.9,5.06663616]
[1745692218097,5.53024489,1808.3,1807.9,6.12644037]
[1745692218734,4.58,1808.4,1807.9,6.12644037]
[1745692219030,4.58,1808.4,1807.9,3.0]
[1745692219031,5.53077605,1808.1,1807.9,3.0]
[1745692222468,10.11198271,1808.0,1807.7,2.11423616]
[1745692222663,10.11198271,1808.0,1807.7,5.11423616]
[1745692223666,10.11198271,1808.0,1807.8,1.28543616]
[1745692223862,4.581,1808.0,1807.8,1.28543616]
[1745692224068,4.581,1808.0,1807.9,1.28543616]
[1745692224664,4.581,1808.0,1807.9,1.39056775]
[1745692225082,4.581,1808.0,1807.9,0.10513159]
[1745692225366,10.11197345,1808.0,1807.9,0.10513159]
[1745692225671,10.11197345,1808.0,1807.7,5.11423616]
[1745692225869,10.11197345,1808.0,1807.9,0.10513159]
[1745692226079,10.11197345,1808.0,1807.7,5.11423616]
[1745692226236,10.11197345,1808.0,1807.9,0.10513159]
[1745692226438,10.11197345,1808.0,1807.7,2.11423616]
[1745692226651,10.11197345,1808.0,1807.8,0.10513159]
[1745692229005,4.581,1808.0,1807.8,1.39056775]
[1745692229170,4.581,1808.0,1807.9,1.28543616]
[1745692229507,4.581,1808.0,1807.9,1.39405097]
[1745692230303,4.581,1808.0,1807.9,0.10861481]
[1745692231506,4.581,1808.0,1807.9,0.88331481]
[1745692236824,10.11197345,1808.0,1807.9,0.10861481]
[1745692237028,17.99947935,1808.0,1807.6,4.28543616]
[1745692237323,17.99947935,1808.0,1807.7,0.10815785]
[1745692237638,5.53138754,1807.9,1807.7,0.10815785]
[1745692239023,10.90409331,1808.0,1807.7,0.10815785]
[1745692246967,10.90409331,1808.0,1807.6,8.53216837]
[1745692247169,10.90409331,1808.0,1807.6,10.01610354]
[1745692249472,5.373,1808.0,1807.6,10.01593568]
[1745692249643,4.581,1808.0,1807.8,0.7981]
[1745692250345,4.581,1808.0,1807.8,6.3295595]
[1745692250747,6.32472422,1808.3,1807.9,5.53109703]
[1745692250950,4.581,1808.2,1807.9,1.18606565]
[1745692251971,4.581,1808.2,1808.0,0.5]
[1745692256388,10.11140227,1808.2,1808.0,0.5]
[1745692257186,4.581,1808.2,1808.0,0.5]
[1745692259989,4.581,1808.2,1808.0,6.86371294]
[1745692260189,29.01735949,1808.6,1808.1,5.53066755]
[1745692260389,10.11050278,1808.5,1808.1,6.36334358]
[1745692261472,5.52980165,1808.4,1808.1,0.8328]
[1745692269038,5.53023632,1808.3,1808.0,2.53979399]
[1745692269194,5.53050094,1808.2,1808.0,0.5]
[1745692270097,6.35684818,1808.3,1808.0,0.5]
[1745692270627,4.58,1808.2,1808.0,0.5]
[1745692273205,10.11053521,1808.2,1808.0,0.5]
[1745692273533,10.11053521,1808.2,1807.9,3.0]
[1745692273742,11.7571955,1808.2,1807.8,0.8003]
[1745692273913,5.53070464,1808.1,1807.8,0.8003]
[1745692274441,10.11048803,1808.2,1807.8,0.8003]
[1745692274741,10.11048803,1808.2,1807.8,6.33172332]
[1745692275338,10.11048803,1808.2,1807.8,0.8003]
[1745692275714,5.53080288,1808.1,1807.8,0.8003]
[1745692276655,6.36060288,1808.1,1807.7,9.81712218]
[1745692277344,0.8298,1808.1,1807.8,5.53158024]
[1745692277514,10.11048803,1808.2,1807.8,6.31898024]
[1745692289045,4.58,1808.2,1807.9,5.53117499]
[1745692289256,4.58,1808.2,1808.0,0.7643]
[1745692291478,4.58,1808.2,1808.1,0.5]
[1745692291977,4.58,1808.2,1808.0,0.7643]
[1745692292594,0.7695,1808.4,1808.0,6.29522153]
[1745692292807,11.63956554,1808.5,1808.1,6.29482428]
[1745692292953,1.16395655,1808.4,1808.1,6.29482428]
[1745692293158,5.74495655,1808.4,1808.1,0.7643]
[1745692293361,4.581,1808.3,1808.1,0.7643]
[1745692294766,5.5297645,1808.4,1808.1,0.7643]
[1745692294971,4.581,1808.3,1808.1,0.7643]
[1745692295202,10.11109547,1808.3,1808.1,0.7643]
[1745692295957,10.11109547,1808.3,1808.2,0.5]
[1745692296400,4.581,1808.3,1808.2,0.5]
[1745692299194,10.11105585,1808.3,1808.2,0.5]
[1745692300193,4.581,1808.3,1808.2,0.5]
[1745692301560,10.11105585,1808.3,1808.2,0.5]
[1745692303703,4.581,1808.3,1808.2,0.5]
[1745692313920,10.11105585,1808.3,1808.2,0.5]
[1745692318318,4.581,1808.3,1808.2,0.5]
[1745692341841,6.34399664,1808.6,1808.2,6.03036168]
[1745692342009,6.11,1808.8,1808.5,5.52938029]
[1745692342010,0.7656,1808.8,1808.5,5.52938029]
[1745692342216,6.11,1809.0,1808.5,5.52938029]
[1745692342217,6.11,1809.0,1808.6,6.29936778]
[1745692342539,6.29342054,1809.1,1808.7,5.5287189]
[1745692342742,4.579,1809.0,1808.8,5.52840691]
[1745692343637,4.579,1809.0,1808.8,5.52831752]
[1745692343812,4.579,1809.0,1808.9,0.8252]
[1745692345624,5.52748655,1809.2,1808.9,0.8252]
[1745692345922,4.579,1809.1,1808.9,0.8252]
[1745692346634,10.10665748,1809.1,1808.7,5.52867916]
[1745692346934,10.10665748,1809.1,1808.8,0.8093]
[1745692350339,10.10665249,1809.1,1808.8,0.8093]
[1745692352143,4.579,1809.1,1808.8,0.8093]
[1745692352437,1.28541206,1808.9,1808.5,3.0]
[1745692352643,5.52840755,1808.9,1808.5,3.0]
[1745692352847,5.52840755,1808.9,1808.5,8.52940481]
[1745692353243,5.52840755,1808.9,1808.5,3.0]
[1745692355050,5.52840755,1808.9,1808.5,8.52938679]
[1745692355753,5.52840755,1808.9,1808.5,9.46325547]
[1745692356646,6.35417832,1809.0,1808.5,9.46325547]
[1745692357456,6.35417832,1809.0,1808.6,5.52912847]
[1745692357755,6.35417832,1809.0,1808.6,6.34902847]
[1745692357935,6.35417832,1809.0,1808.7,0.5]
[1745692358258,8.05849615,1809.0,1808.7,0.5]
[1745692359074,2.53041783,1809.0,1808.7,0.5]
[1745692359657,8.05845364,1809.0,1808.7,0.5]
[1745692359858,6.35413581,1809.0,1808.7,0.5]
[1745692361059,4.578,1808.9,1808.7,6.02862302]
[1745692361267,6.30859989,1809.2,1808.8,0.8261]
[1745692361441,4.578,1808.9,1808.8,6.3546272]
[1745692362171,4.578,1808.9,1808.8,0.8261]
[1745692363337,4.578,1808.9,1808.7,0.5]
[1745692363666,6.81393926,1808.8,1808.7,0.5]
[1745692363869,1.28541206,1808.8,1808.3,0.8261]
[1745692364114,6.33025225,1808.7,1808.3,0.8261]
[1745692364277,6.33025225,1808.7,1808.3,6.35614251]
[1745692365148,6.33025225,1808.7,1808.3,0.8261]
[1745692365349,0.8012,1808.7,1808.3,6.35614002]
[1745692365881,6.33021947,1808.7,1808.3,6.35614002]
[1745692366069,5.52915053,1808.6,1808.3,0.8261]
[1745692367077,4.577,1808.5,1808.2,0.7927]
[1745692367787,10.10661625,1808.5,1808.2,0.7927]
[1745692368196,4.577,1808.5,1808.2,0.7927]
[1745692369061,4.577,1808.5,1808.3,0.5]
[1745692375093,10.10650212,1808.5,1808.3,0.5]
[1745692378715,4.577,1808.5,1808.3,0.5]
[1745692378914,4.577,1808.5,1808.4,1.28541206]
[1745692379061,11.6386724,1808.8,1808.4,7.64456211]
[1745692379266,4.578,1808.7,1808.4,7.64456211]
[1745692380705,4.578,1808.7,1808.4,6.35915005]
[1745692383726,4.578,1808.7,1808.4,6.35893677]
[1745692383919,4.578,1808.7,1808.5,0.63589368]
[1745692389189,4.578,1808.7,1808.4,0.8294]
[1745692389384,5.52965645,1808.5,1808.3,0.5]
[1745692394729,5.52975005,1808.4,1808.3,0.5]
[1745692395415,5.52928768,1808.6,1808.3,0.5]
[1745692395416,5.52961369,1808.5,1808.3,0.5]
[1745692399263,10.10661369,1808.5,1808.3,0.5]
[1745692401870,4.577,1808.5,1808.3,0.5]
[1745692402635,10.10646188,1808.5,1808.3,0.5]
[1745692407644,4.577,1808.5,1808.3,0.5]
[1745692408866,4.577,1808.4,1808.3,0.5]
[1745692421266,4.577,1808.4,1808.3,6.03005585]
[1745692421576,0.7791,1809.1,1808.8,5.52836322]
[1745692421781,4.577,1809.0,1808.9,5.52810378]
[1745692421992,4.577,1809.0,1808.8,5.52834804]
[1745692424719,0.7791,1808.9,1808.4,0.8285]
[1745692424867,6.30747339,1808.9,1808.5,5.52932283]
[1745692425220,0.7791,1808.9,1808.5,5.52932283]
[1745692426113,6.30733803,1808.9,1808.5,5.52932283]
[1745692426780,0.7791,1808.9,1808.5,11.05852801]
[1745692427111,2.04962192,1808.9,1808.5,5.52920518]
[1745692428393,2.04962192,1808.9,1808.6,5.52910151]
[1745692428705,7.57797275,1808.9,1808.5,5.52925296]
[1745692429163,2.04962192,1808.9,1808.5,5.52922657]
[1745692430099,7.57788819,1808.9,1808.5,5.52922657]
[1745692430992,7.57788819,1808.9,1808.6,0.5]
[1745692431806,0.7791,1808.7,1808.6,0.5]
[1745692432104,6.30793286,1808.7,1808.6,0.5]
[1745692434009,0.7791,1808.7,1808.6,0.5]
[1745692434608,0.8212,1808.8,1808.6,0.5]
[1745692435530,4.576,1808.7,1808.6,0.5]
[1745692438289,12.45928128,1809.0,1808.6,6.02913856]
[1745692438518,4.576,1808.7,1808.6,6.02913856]
[1745692438834,4.576,1808.7,1808.6,6.02890193]
[1745692440818,6.9312,1809.0,1808.6,6.02890193]
[1745692441022,4.576,1808.9,1808.6,6.02890193]
[1745692442332,0.8212,1809.0,1808.7,5.52882116]
[1745692442534,4.576,1808.9,1808.7,5.52882116]
[1745692442733,4.576,1808.9,1808.6,6.02895625]
[1745692445952,4.576,1808.9,1808.6,6.0289011]
[1745692446615,4.576,1808.9,1808.7,5.52881742]
[1745692447506,4.576,1808.9,1808.8,0.828]
[1745692448553,16.6,1809.1,1808.8,6.99219431]
[1745692448708,4.576,1809.0,1808.9,5.52808297]
[1745692449398,4.576,1809.1,1809.0,5.52787986]
[1745692449727,4.576,1809.1,1808.9,5.52802292]
[1745692450905,4.576,1809.1,1808.8,6.9920193]
[1745692451133,4.576,1809.1,1808.8,0.63568174]
[1745692451317,10.92952787,1809.1,1808.7,5.52871709]
[1745692451838,5.4018,1809.1,1808.7,11.05731312]
[1745692452037,5.4018,1809.1,1808.7,11.05722912]
[1745692452510,5.4018,1809.1,1808.7,5.52859603]
[1745692452929,5.4018,1809.1,1808.7,11.05721421]
[1745692453122,5.4018,1809.1,1808.7,12.29309563]
[1745692454342,5.4018,1809.1,1808.7,12.29313805]
[1745692454544,5.4018,1809.1,1808.7,12.29311278]
[1745692455449,10.92944517,1809.1,1808.7,5.52859603]
[1745692460664,5.4018,1809.1,1808.7,5.52859603]
[1745692460859,5.4018,1809.1,1808.8,5.52848963]
[1745692461952,5.4018,1809.1,1808.7,5.52863593]
[1745692462859,10.1036119,1809.1,1808.6,6.02897202]
[1745692463033,1.80436119,1809.0,1808.6,6.02894201]
[1745692463357,1.80436119,1809.0,1808.7,5.52879106]
[1745692463358,0.794,1809.0,1808.7,5.52879106]
[1745692464556,4.575,1808.9,1808.7,5.52879106]
[1745692465022,4.575,1808.9,1808.7,5.52860679]
[1745692470384,4.575,1808.9,1808.7,5.52860891]
[1745692471081,4.575,1808.9,1808.8,5.5285272]
[1745692472763,4.575,1808.9,1808.8,6.63424081]
[1745692475185,4.575,1808.9,1808.8,7.44524081]
[1745692477287,0.772,1809.3,1809.0,5.52781777]
[1745692477288,4.575,1809.2,1809.0,5.52781777]
[1745692478261,0.772,1809.3,1809.0,5.52781777]
[1745692478459,4.574,1809.2,1809.1,5.52750725]
[1745692480791,4.574,1809.2,1808.9,5.52808554]
[1745692480991,4.574,1809.2,1808.9,6.82540777]
[1745692481895,4.574,1809.2,1808.9,12.35339046]
[1745692483097,4.574,1809.2,1808.9,6.82535055]
[1745692483394,4.574,1809.2,1808.9,12.35338004]
[1745692483589,4.574,1809.2,1808.9,6.82535055]
[1745692483995,4.574,1809.2,1808.9,12.35333611]
[1745692484337,4.574,1809.2,1809.0,5.52788304]
[1745692484662,0.772,1809.3,1809.0,5.52788304]
[1745692484862,4.574,1809.2,1809.0,5.52788304]
[1745692486498,4.574,1809.2,1808.9,1.29732223]
[1745692486700,4.574,1809.2,1809.1,5.52731752]
[1745692486903,4.574,1809.4,1809.3,5.52699939]
[1745692487900,9.26600128,1809.5,1809.3,5.52699939]
[1745692490194,4.69200128,1809.5,1809.3,5.52699939]
[1745692490395,9.26500128,1809.5,1809.3,5.52699939]
[1745692491513,9.26500128,1809.5,1809.3,11.05382612]
[1745692491691,9.26500128,1809.5,1809.2,6.30717819]
[1745692491895,9.26500128,1809.5,1809.3,5.52678962]
[1745692492403,4.69200128,1809.5,1809.4,5.52669393]
[1745692492604,4.69200128,1809.5,1809.4,8.52669393]
[1745692492907,4.573,1809.7,1809.6,5.52608311]
[1745692495091,4.573,1809.7,1809.5,5.52619438]
[1745692496323,4.573,1809.7,1809.5,5.94710131]
[1745692496508,4.573,1809.7,1809.5,7.4770346]
[1745692500123,4.573,1809.7,1809.5,7.4770099]
[1745692500294,4.573,1809.7,1809.5,7.47706269]
[1745692501112,4.573,1809.7,1809.5,7.47700309]
[1745692501310,4.573,1809.7,1809.5,13.00316667]
[1745692502125,4.573,1809.7,1809.5,7.47700309]
[1745692502424,0.7812,1810.0,1809.7,5.52568646]
[1745692502626,4.572,1809.9,1809.7,5.52568646]
[1745692503206,4.572,1809.9,1809.6,11.79950252]
[1745692503401,4.572,1809.9,1809.6,6.27358472]
[1745692503820,4.572,1809.9,1809.6,0.74770031]
[1745692504020,4.572,1809.9,1809.6,5.5260199]
[1745692507124,4.572,1809.9,1809.7,0.5]
[1745692508145,4.572,1809.9,1809.5,5.94712751]
[1745692508349,4.572,1809.9,1809.6,5.52592499]
[1745692509437,10.09728418,1809.9,1809.5,5.94711684]
[1745692509646,0.7811,1809.8,1809.5,7.47705334]
[1745692510447,0.7811,1809.8,1809.4,9.35224813]
[1745692510448,0.7811,1809.5,1809.1,5.52748284]
[1745692510612,5.3531,1809.5,1809.2,5.52719712]
[1745692511747,5.3531,1809.5,1809.3,5.52693808]
[1745692516439,5.3531,1809.5,1809.2,5.52722797]
[1745692517053,5.3531,1809.5,1809.2,11.05429536]
[1745692517218,5.3531,1809.5,1809.2,12.28817642]
[1745692517546,5.3531,1809.5,1809.2,6.76094212]
[1745692517757,4.572,1809.5,1809.3,5.52686027]
[1745692518559,4.56333836,1809.5,1809.3,5.52686027]
[1745692518858,4.56333836,1809.5,1809.3,6.81130593]
[1745692519156,4.56333836,1809.5,1809.4,5.52669393]
[1745692519369,4.572,1809.5,1809.4,5.52669393]
[1745692519763,0.8222,1809.8,1809.5,5.52628714]
[1745692519936,4.572,1809.7,1809.6,5.52591218]
[1745692521062,4.572,1809.8,1809.6,5.52591218]
[1745692524266,4.572,1809.8,1809.6,6.71320201]
[1745692525056,4.572,1809.8,1809.6,1.18728983]
[1745692526667,4.572,1809.8,1809.6,6.71337135]
[1745692531274,4.572,1809.8,1809.6,1.18728983]
[1745692538889,4.572,1809.8,1809.6,6.71335457]
[1745692540191,4.572,1809.8,1809.7,5.52577775]
[1745692540392,4.572,1809.8,1809.7,0.67133546]
[1745692545007,4.572,1809.8,1809.6,1.18728983]
[1745692547510,4.572,1809.8,1809.6,6.71327785]
[1745692549090,4.572,1809.8,1809.6,1.18728983]
[1745692549500,4.572,1809.8,1809.6,6.71331522]
[1745692551810,4.572,1809.8,1809.6,1.18728983]
[1745692553811,4.572,1809.8,1809.6,6.71329919]
[1745692558825,4.572,1809.8,1809.7,0.67132992]
[1745692558981,4.572,1809.8,1809.6,6.71320277]
[1745692560719,4.572,1809.8,1809.6,6.71317927]
[1745692568847,4.572,1809.8,1809.6,1.18728983]
[1745692569353,10.09748996,1809.8,1809.5,0.8206]
[1745692569630,10.09748996,1809.8,1809.3,9.96620561]
[1745692569631,0.7573,1809.5,1809.3,3.0]
[1745692569821,0.7573,1809.5,1809.2,5.52719781]
[1745692570022,4.57,1809.4,1809.2,5.52719781]
[1745692570212,4.57,1809.4,1809.3,0.55271978]
[1745692570654,4.57,1809.4,1809.3,6.84151917]
[1745692570950,0.7573,1809.7,1809.4,5.52655808]
[1745692571156,4.57,1809.6,1809.4,5.52655808]
[1745692571429,4.57,1809.6,1809.4,11.05303477]
[1745692571636,4.57,1809.6,1809.4,6.76323214]
[1745692574315,4.57,1809.6,1809.3,6.84134892]
[1745692575137,4.57,1809.6,1809.4,0.5]
[1745692577244,6.33972878,1809.7,1809.4,0.5]
[1745692577427,4.571,1809.6,1809.4,0.5]
[1745692581974,10.09714969,1809.6,1809.4,0.5]
[1745692584059,4.571,1809.6,1809.4,0.5]
[1745692584415,4.571,1809.6,1809.4,1.10268592]
[1745692584615,4.571,1809.6,1809.4,0.5]
[1745692585029,4.571,1809.6,1809.4,6.02666036]
[1745692590427,4.571,1809.6,1809.4,6.02645063]
[1745692591556,10.85125006,1809.6,1809.4,0.5]
[1745692591763,12.13576531,1809.6,1809.4,0.5]
[1745692592662,10.85125006,1809.6,1809.4,0.5]
[1745692594491,5.325,1809.6,1809.4,0.5]
[1745692595069,4.571,1809.6,1809.4,1.3201]
[1745692595756,4.571,1809.6,1809.4,0.5]
[1745692604617,4.57,1809.5,1809.4,6.02666131]
[1745692604817,4.57,1809.5,1809.4,7.26401304]
[1745692610535,4.57,1809.5,1809.4,1.73735173]
[1745692615010,4.57,1809.5,1809.4,0.5]
[1745692618546,4.57,1809.5,1809.4,1.2753]
[1745692624999,4.569,1809.7,1809.5,5.52610975]
[1745692625292,12.3950056,1810.0,1809.5,5.52610975]
[1745692625458,6.2850056,1810.0,1809.5,5.52610975]
[1745692625656,4.569,1809.9,1809.5,5.52610975]
[1745692625861,10.09429749,1809.9,1809.5,5.52610975]
[1745692626065,10.09452885,1809.8,1809.4,6.80179849]
[1745692626365,5.52579897,1809.7,1809.4,1.2753]
[1745692626568,5.52579897,1809.7,1809.4,2.08396824]
[1745692627853,16.38032601,1809.8,1809.4,2.08396824]
[1745692628078,10.854566,1809.8,1809.4,2.08396824]
[1745692628397,5.52577879,1809.7,1809.4,2.08396824]
[1745692628551,10.85453471,1809.8,1809.4,2.08396824]
[1745692628751,10.85453471,1809.8,1809.4,7.61063869]
[1745692629375,5.3289,1809.8,1809.5,0.76106387]
[1745692629566,4.569,1809.8,1809.5,0.76106387]
[1745692629881,4.569,1809.8,1809.4,6.80178796]
[1745692631379,4.569,1809.8,1809.5,5.52635325]
[1745692636988,4.569,1809.8,1809.6,0.5]
[1745692638885,4.569,1809.8,1809.5,5.52635325]
[1745692639289,4.569,1809.8,1809.5,1.28451525]
[1745692639491,4.569,1809.8,1809.6,5.52592448]
[1745692639797,4.569,1809.8,1809.7,0.55259245]
[1745692639975,6.29387975,1810.0,1809.7,0.55259245]
[1745692640170,4.568,1809.9,1809.7,0.55259245]
[1745692647216,10.09322282,1809.9,1809.6,0.7715]
[1745692647697,4.568,1809.9,1809.6,6.29756216]
[1745692648003,0.769,1810.0,1809.7,5.52574989]
[1745692648202,4.568,1809.9,1809.7,6.81026514]
[1745692648390,0.8301,1810.2,1809.8,5.52545474]
[1745692648569,4.568,1810.1,1809.8,5.52545474]
[1745692648769,4.568,1810.1,1809.7,6.83639675]
[1745692649606,0.8078,1810.0,1809.7,1.3107796]
[1745692649768,0.8078,1810.0,1809.6,11.82331365]
[1745692650115,0.8078,1809.8,1809.4,5.52656974]
[1745692650313,4.568,1809.7,1809.4,5.52656974]
[1745692650964,4.568,1809.7,1809.5,5.52638621]
[1745692651367,4.568,1809.7,1809.4,5.52657262]
[1745692652091,4.568,1809.7,1809.5,0.5]
[1745692653817,4.568,1809.7,1809.5,6.02635198]
[1745692663424,4.568,1809.7,1809.5,11.55251319]
[1745692664033,4.568,1809.7,1809.5,6.02616121]
[1745692665596,4.568,1809.7,1809.5,11.55237848]
[1745692666638,4.568,1809.7,1809.5,11.55243395]
[1745692667036,4.568,1809.7,1809.5,11.55231512]
[1745692669126,4.568,1809.6,1809.5,6.02615391]
[1745692670632,0.8078,1809.8,1809.6,5.5260106]
[1745692670814,4.567,1809.7,1809.6,5.52589339]
[1745692673543,4.567,1809.7,1809.5,0.5]
[1745692673832,4.567,1809.7,1809.3,0.758]
[1745692674012,6.27728568,1809.6,1809.2,11.05413098]
[1745692674206,0.7512,1809.6,1809.3,5.52699032]
[1745692674444,6.2774327,1809.6,1809.2,5.5272872]
[1745692674745,6.2774327,1809.6,1808.3,0.758]
[1745692674746,0.7512,1809.3,1808.3,0.758]
[1745692674936,0.7512,1808.6,1808.1,0.758]
[1745692675123,4.567,1808.5,1808.1,6.28842138]
[1745692675329,15.62629915,1808.5,1808.2,0.62884214]
[1745692675645,5.5302631,1808.3,1807.9,0.758]
[1745692675859,5.5302631,1808.3,1807.8,5.53157126]
[1745692676062,11.05996745,1808.4,1807.8,6.81608651]
[1745692676370,11.05994737,1808.4,1807.9,1.28451525]
[1745692676516,11.05994737,1808.4,1807.9,1.96610184]
[1745692676715,5.5302237,1808.3,1807.9,1.96610184]
[1745692676944,5.5302237,1808.3,1807.9,0.68158659]
[1745692677354,5.53039615,1808.2,1807.9,0.68158659]
[1745692677559,4.567,1808.1,1807.9,0.68158659]
[1745692680544,4.567,1808.1,1807.9,6.88778694]
[1745692681553,4.567,1808.1,1807.9,1.35651691]
[1745692681751,4.567,1808.1,1807.9,6.88778536]
[1745692682457,12.39052784,1808.6,1808.1,5.53052926]
[1745692682757,10.0985122,1808.5,1808.2,0.67493032]
[1745692683346,10.0985122,1808.5,1808.1,0.8332]
[1745692683733,10.0985122,1808.5,1808.1,6.36384383]
[1745692684243,4.569,1808.5,1808.1,6.36384383]
[1745692684444,4.569,1808.5,1808.2,5.53034218]
[1745692684630,10.0984485,1808.5,1808.1,6.36376845]
[1745692685066,10.09862421,1808.5,1808.1,0.8332]
[1745692685624,5.52986754,1808.4,1808.1,0.8332]
[1745692685824,5.52978282,1808.4,1808.1,0.8332]
[1745692686552,10.09858912,1808.5,1808.1,0.8332]
[1745692686863,10.09858912,1808.5,1808.1,6.3637103]
[1745692688773,11.73650384,1808.5,1808.1,0.8332]
[1745692690666,11.73650384,1808.5,1808.1,6.36386704]
[1745692691678,11.73650384,1808.5,1808.1,6.36382921]
[1745692692076,6.28042984,1808.6,1808.2,5.53023033]
[1745692692280,4.57,1808.4,1808.2,5.53023033]
[1745692692578,4.57,1808.4,1808.1,6.36363312]
[1745692693279,4.57,1808.4,1808.1,0.8332]
[1745692694171,4.57,1808.4,1808.1,6.36379456]
[1745692695573,5.52961832,1808.5,1808.1,6.36379456]
[1745692695779,4.57,1808.4,1808.1,0.8332]
[1745692695948,4.57,1808.4,1808.1,6.36371336]
[1745692696396,10.09985914,1808.4,1808.1,0.8332]
[1745692696988,4.57,1808.4,1808.1,0.8332]
[1745692697150,10.09989112,1808.4,1808.0,9.20566235]
[1745692697587,10.09989112,1808.4,1808.0,14.73640474]
[1745692697771,10.09989112,1808.4,1808.0,9.20566235]
[1745692697772,4.57,1808.4,1808.0,9.20566235]
[1745692697976,10.09978957,1808.4,1808.0,9.20566235]
[1745692698595,4.57,1808.4,1808.0,9.20566235]
[1745692698895,4.57,1808.4,1808.0,0.67493032]
[1745692699051,4.57,1808.4,1808.0,6.20560915]
[1745692699256,4.57,1808.4,1808.1,5.53063998]
[1745692699983,4.57,1808.4,1808.0,10.75734933]
[1745692700292,10.09986732,1808.4,1808.0,10.08241901]
[1745692700452,4.57,1808.4,1808.0,15.6132613]
[1745692700652,4.57,1808.4,1808.0,10.08241901]
[1745692701190,4.57,1808.4,1808.1,5.53066378]
[1745692701995,4.57,1808.4,1808.0,10.08244789]
[1745692702157,10.0997648,1808.4,1808.0,10.08244789]
[1745692703300,4.57,1808.4,1808.1,5.53052142]
[1745692704314,0.31100261,1808.3,1808.1,5.53052142]
[1745692705112,0.31100261,1808.3,1808.0,10.08245562]
[1745692705113,4.57,1808.2,1808.0,10.08245562]
[1745692705600,4.57,1808.2,1808.0,15.61320018]
[1745692705803,4.57,1808.2,1808.0,10.08238636]
[1745692707298,4.57,1808.2,1808.0,8.53074456]
[1745692707804,0.3110884,1808.1,1808.0,8.53074456]
[1745692708413,0.3110884,1808.1,1808.0,9.34314456]
[1745692709511,4.57,1808.2,1808.1,5.53066755]
[1745692709812,4.57,1808.2,1808.1,6.20559787]
[1745692710026,0.31112604,1808.2,1808.1,12.21820243]
[1745692710327,0.31112604,1808.2,1808.1,12.63364923]
[1745692710514,0.31112604,1808.6,1808.4,6.31237169]
[1745692710823,0.31112604,1808.6,1808.4,6.98730201]
[1745692711540,4.57,1808.7,1808.4,6.98730201]
[1745692712334,4.57,1808.7,1808.4,6.98727884]
[1745692712828,22.13034004,1808.9,1808.5,5.52936576]
[1745692712996,4.57,1808.7,1808.5,5.52923225]
[1745692713199,4.57,1808.7,1808.6,5.52913856]
[1745692714438,4.57,1808.7,1808.5,5.52941364]
[1745692719854,4.57,1808.7,1808.4,7.56411742]
[1745692720053,4.57,1808.7,1808.4,13.09362871]
[1745692722772,4.57,1808.7,1808.5,5.52941033]
[1745692724259,4.57,1808.7,1808.4,10.56406994]
[1745692724465,4.57,1808.7,1808.5,5.52943292]
[1745692728380,4.57,1808.7,1808.4,10.56407651]
[1745692729057,4.57,1808.7,1808.5,5.52933177]
[1745692732509,4.57,1808.7,1808.4,9.31254047]
[1745692732699,4.57,1808.7,1808.5,5.52940415]
[1745692739817,0.31104993,1808.6,1808.5,5.52940415]
[1745692749638,4.57,1808.7,1808.6,5.52913856]
[1745692750132,4.57,1808.7,1808.5,5.52925065]
[1745692750427,4.57,1808.7,1808.5,5.52924425]